[Event "Titled Tuesday Blitz December 13 Early 2022"]
[White "So, Wesley"]
[Black "Postnikov, Daniil"]
[WhiteFideId "5202213"]
[BlackFideId "4166329"]
[WhiteElo "2763"]
[BlackElo "2261"]
[Result "1-0"]
[Round "02"]
[TimeControl "180+1"]
[Date "2022.12.13"]
[WhiteClock "0:01:01"]
[BlackClock "0:00:23"]

1. d4 {[%clk 0:02:57]}  f5 {[%clk 0:03:00]} 2. g3 {[%clk 0:02:53]}  Nf6 {[%clk 0:03:00]} 3. Bg2 {[%clk 0:02:54]}  g6 {[%clk 0:03:01]} 4. Nf3 {[%clk 0:02:53]}  Bg7 {[%clk 0:03:01]} 5. O-O {[%clk 0:02:54]}  O-O {[%clk 0:03:02]} 6. b3 {[%clk 0:02:54]}  d6 {[%clk 0:03:02]} 7. Bb2 {[%clk 0:02:54]}  Qe8 {[%clk 0:03:02]} 8. Nbd2 {[%clk 0:02:52]}  Nc6 {[%clk 0:03:02]} 9. Re1 {[%clk 0:02:48]}  Ne4 {[%clk 0:02:53]} 10. e3 {[%clk 0:02:29]}  e5 {[%clk 0:02:21]} 11. Nxe4 {[%clk 0:02:22]}  fxe4 {[%clk 0:02:20]} 12. Ng5 {[%clk 0:02:22]}  d5 {[%clk 0:02:00]} 13. c4 {[%clk 0:02:07]}  exd4 {[%clk 0:01:49]} 14. exd4 {[%clk 0:01:55]}  Qd8 {[%clk 0:01:32]} 15. cxd5 {[%clk 0:01:53]}  Qxg5 {[%clk 0:01:32]} 16. dxc6 {[%clk 0:01:53]}  Bg4 {[%clk 0:01:19]} 17. Qc1 {[%clk 0:01:35]}  Qf5 {[%clk 0:01:18]} 18. Qc2 {[%clk 0:01:32]}  Bf3 {[%clk 0:01:10]} 19. cxb7 {[%clk 0:01:31]}  Rae8 {[%clk 0:01:09]} 20. Bxf3 {[%clk 0:01:26]}  Qxf3 {[%clk 0:01:09]} 21. Re3 {[%clk 0:01:25]}  Qf5 {[%clk 0:00:57]} 22. Rae1 {[%clk 0:01:24]}  h5 {[%clk 0:00:32]} 23. Rxe4 {[%clk 0:01:07]}  Rxe4 {[%clk 0:00:31]} 24. Rxe4 {[%clk 0:01:08]}  g5 {[%clk 0:00:23]} 25. b8=Q {[%clk 0:01:01]} 1-0


[Site "https://www.chess.com"]

[Event "Titled Tuesday Blitz December 13 Early 2022"]
[White "Sprenar, Petr"]
[Black "Petrova, Irina"]
[WhiteFideId "397164"]
[BlackFideId "14124122"]
[WhiteElo "2182"]
[BlackElo "2023"]
[Result "1-0"]
[Round "02"]
[TimeControl "180+1"]
[Date "2022.12.14"]
[WhiteClock "0:01:19"]
[BlackClock "0:00:22"]

1. d4 {[%clk 0:03:00]}  d6 {[%clk 0:03:00]} 2. g3 {[%clk 0:03:00]}  g6 {[%clk 0:03:00]} 3. Bg2 {[%clk 0:03:01]}  Bg7 {[%clk 0:03:01]} 4. Nf3 {[%clk 0:03:01]}  Nf6 {[%clk 0:03:01]} 5. O-O {[%clk 0:03:02]}  O-O {[%clk 0:03:02]} 6. b3 {[%clk 0:03:02]}  Nc6 {[%clk 0:03:02]} 7. Bb2 {[%clk 0:03:02]}  e5 {[%clk 0:02:57]} 8. dxe5 {[%clk 0:03:03]}  Ng4 {[%clk 0:02:57]} 9. c4 {[%clk 0:03:02]}  Ngxe5 {[%clk 0:02:57]} 10. Qd2 {[%clk 0:02:59]}  Nxf3+ {[%clk 0:02:54]} 11. exf3 {[%clk 0:02:54]}  Be6 {[%clk 0:02:54]} 12. Nc3 {[%clk 0:02:52]}  Qf6 {[%clk 0:02:49]} 13. Rab1 {[%clk 0:02:48]}  Qd4 {[%clk 0:02:47]} 14. Qe2 {[%clk 0:02:44]}  Qc5 {[%clk 0:02:40]} 15. Ne4 {[%clk 0:02:40]}  Qf5 {[%clk 0:02:27]} 16. Bxg7 {[%clk 0:02:17]}  Kxg7 {[%clk 0:02:28]} 17. Rbd1 {[%clk 0:02:15]}  Rae8 {[%clk 0:02:22]} 18. Rfe1 {[%clk 0:02:13]}  f6 {[%clk 0:02:20]} 19. h4 {[%clk 0:02:09]}  Bf7 {[%clk 0:02:00]} 20. Qd2 {[%clk 0:02:09]}  Ne5 {[%clk 0:01:59]} 21. f4 {[%clk 0:02:10]}  Nc6 {[%clk 0:01:45]} 22. Kh2 {[%clk 0:02:10]}  Qa5 {[%clk 0:01:36]} 23. Qb2 {[%clk 0:02:09]}  Be6 {[%clk 0:01:29]} 24. Re3 {[%clk 0:02:09]}  Re7 {[%clk 0:01:03]} 25. Rde1 {[%clk 0:02:07]}  Ref7 {[%clk 0:01:01]} 26. Ng5 {[%clk 0:01:49]}  Bd7 {[%clk 0:00:58]} 27. Nxf7 {[%clk 0:01:46]}  Rxf7 {[%clk 0:00:59]} 28. Bd5 {[%clk 0:01:44]}  Rf8 {[%clk 0:00:56]} 29. a3 {[%clk 0:01:43]}  Qc5 {[%clk 0:00:50]} 30. b4 {[%clk 0:01:43]}  Qb6 {[%clk 0:00:43]} 31. Qc3 {[%clk 0:01:43]}  a6 {[%clk 0:00:39]} 32. Re7+ {[%clk 0:01:29]}  Nxe7 {[%clk 0:00:39]} 33. Rxe7+ {[%clk 0:01:30]}  Kh8 {[%clk 0:00:39]} 34. Rxd7 {[%clk 0:01:30]}  Qxf2+ {[%clk 0:00:38]} 35. Bg2 {[%clk 0:01:30]}  Qb6 {[%clk 0:00:22]} 36. Qe1 {[%clk 0:01:19]} 1-0


[Site "https://www.chess.com"]

[Event "Titled Tuesday Blitz December 13 Early 2022"]
[White "Szyszylo, Rafal"]
[Black "Stijve, Theo"]
[WhiteFideId "1109626"]
[BlackFideId "1331132"]
[WhiteElo "1981"]
[BlackElo "2256"]
[Result "1-0"]
[Round "02"]
[TimeControl "180+1"]
[Date "2022.12.14"]
[WhiteClock "0:00:53"]
[BlackClock "0:00:18"]

1. e4 {[%clk 0:03:00]}  c6 {[%clk 0:02:53]} 2. d4 {[%clk 0:03:00]}  d5 {[%clk 0:02:53]} 3. e5 {[%clk 0:03:01]}  Bf5 {[%clk 0:02:52]} 4. Nf3 {[%clk 0:03:00]}  e6 {[%clk 0:02:50]} 5. Be2 {[%clk 0:03:01]}  h6 {[%clk 0:02:49]} 6. Nbd2 {[%clk 0:02:58]}  Ne7 {[%clk 0:02:48]} 7. Nf1 {[%clk 0:02:59]}  Nd7 {[%clk 0:02:43]} 8. h3 {[%clk 0:02:59]}  g5 {[%clk 0:02:42]} 9. Ng3 {[%clk 0:02:59]}  Bg6 {[%clk 0:02:39]} 10. Bd3 {[%clk 0:02:59]}  c5 {[%clk 0:02:32]} 11. c3 {[%clk 0:02:51]}  Rc8 {[%clk 0:02:20]} 12. O-O {[%clk 0:02:50]}  Qb6 {[%clk 0:02:17]} 13. a3 {[%clk 0:02:26]}  cxd4 {[%clk 0:02:02]} 14. cxd4 {[%clk 0:02:24]}  Nc6 {[%clk 0:01:39]} 15. Bxg6 {[%clk 0:02:22]}  fxg6 {[%clk 0:01:39]} 16. Qd3 {[%clk 0:02:03]}  Rg8 {[%clk 0:01:23]} 17. h4 {[%clk 0:01:50]}  g4 {[%clk 0:01:20]} 18. Nh2 {[%clk 0:01:50]}  h5 {[%clk 0:01:18]} 19. Be3 {[%clk 0:01:42]}  Be7 {[%clk 0:01:16]} 20. b4 {[%clk 0:01:31]}  Bxh4 {[%clk 0:01:12]} 21. Ne2 {[%clk 0:01:31]}  a5 {[%clk 0:01:04]} 22. b5 {[%clk 0:01:30]}  Ne7 {[%clk 0:01:02]} 23. g3 {[%clk 0:01:18]}  Bf6 {[%clk 0:00:45]} 24. exf6 {[%clk 0:01:17]}  Nxf6 {[%clk 0:00:45]} 25. Bg5 {[%clk 0:01:07]}  Ne4 {[%clk 0:00:38]} 26. Bxe7 {[%clk 0:01:07]}  Kxe7 {[%clk 0:00:38]} 27. f3 {[%clk 0:00:58]}  gxf3 {[%clk 0:00:21]} 28. Nxf3 {[%clk 0:00:59]}  Rcf8 {[%clk 0:00:17]} 29. Ne5 {[%clk 0:00:58]}  g5 {[%clk 0:00:17]} 30. Rxf8 {[%clk 0:00:56]}  Kxf8 {[%clk 0:00:18]} 31. Nd7+ {[%clk 0:00:53]} 1-0


[Site "https://www.chess.com"]

[Event "Titled Tuesday Blitz December 13 Early 2022"]
[White "Tatarinov, Dmitry"]
[Black "Sonnenschein, Philipp"]
[WhiteFideId "24160067"]
[BlackFideId "16250877"]
[WhiteElo "2326"]
[BlackElo "2224"]
[Result "1-0"]
[Round "02"]
[TimeControl "180+1"]
[Date "2022.12.14"]
[WhiteClock "0:02:47"]
[BlackClock "0:02:34"]

1. e4 {[%clk 0:03:00]}  c5 {[%clk 0:02:59]} 2. Nf3 {[%clk 0:03:01]}  Nc6 {[%clk 0:02:59]} 3. Bb5 {[%clk 0:03:01]}  g6 {[%clk 0:02:58]} 4. Bxc6 {[%clk 0:03:01]}  dxc6 {[%clk 0:02:59]} 5. h3 {[%clk 0:03:00]}  Bg7 {[%clk 0:02:59]} 6. d3 {[%clk 0:03:01]}  Qc7 {[%clk 0:02:58]} 7. O-O {[%clk 0:03:01]}  e5 {[%clk 0:02:58]} 8. a4 {[%clk 0:03:00]}  a5 {[%clk 0:02:57]} 9. Nc3 {[%clk 0:02:58]}  Nf6 {[%clk 0:02:51]} 10. Nh2 {[%clk 0:02:58]}  O-O {[%clk 0:02:47]} 11. f4 {[%clk 0:02:55]}  Nh5 {[%clk 0:02:34]} 12. f5 {[%clk 0:02:47]}  gxf5 {[%clk 0:02:34]} 13. Qxh5 {[%clk 0:02:47]} 1-0


[Site "https://www.chess.com"]

[Event "Titled Tuesday Blitz December 13 Early 2022"]
[White "Todorovic, Bojan"]
[Black "Kazakouski, Valery"]
[WhiteFideId "917087"]
[BlackFideId "13507443"]
[WhiteElo "2266"]
[BlackElo "2516"]
[Result "0-1"]
[Round "02"]
[TimeControl "180+1"]
[Date "2022.12.14"]
[WhiteClock "0:00:12"]
[BlackClock "0:01:40"]

1. d4 {[%clk 0:02:59]}  Nf6 {[%clk 0:02:59]} 2. c4 {[%clk 0:02:54]}  e6 {[%clk 0:02:59]} 3. Nc3 {[%clk 0:02:53]}  Bb4 {[%clk 0:02:59]} 4. Qc2 {[%clk 0:02:53]}  Nc6 {[%clk 0:02:59]} 5. Nf3 {[%clk 0:02:52]}  d6 {[%clk 0:03:00]} 6. Bg5 {[%clk 0:02:49]}  h6 {[%clk 0:03:00]} 7. Bh4 {[%clk 0:02:47]}  O-O {[%clk 0:02:58]} 8. e3 {[%clk 0:02:46]}  e5 {[%clk 0:02:59]} 9. Be2 {[%clk 0:02:42]}  exd4 {[%clk 0:02:53]} 10. Nxd4 {[%clk 0:02:36]}  Nxd4 {[%clk 0:02:53]} 11. exd4 {[%clk 0:02:36]}  Qe7 {[%clk 0:02:43]} 12. O-O {[%clk 0:02:34]}  Bxc3 {[%clk 0:02:43]} 13. bxc3 {[%clk 0:02:34]}  Qe4 {[%clk 0:02:43]} 14. Qxe4 {[%clk 0:02:31]}  Nxe4 {[%clk 0:02:44]} 15. Bd3 {[%clk 0:02:06]}  Nxc3 {[%clk 0:02:34]} 16. a4 {[%clk 0:02:00]}  Bd7 {[%clk 0:02:28]} 17. a5 {[%clk 0:01:46]}  Rfe8 {[%clk 0:02:28]} 18. Rfe1 {[%clk 0:01:25]}  b5 {[%clk 0:02:18]} 19. c5 {[%clk 0:00:55]}  dxc5 {[%clk 0:02:12]} 20. dxc5 {[%clk 0:00:55]}  a6 {[%clk 0:02:08]} 21. Bg3 {[%clk 0:00:46]}  c6 {[%clk 0:02:08]} 22. Kf1 {[%clk 0:00:39]}  Re6 {[%clk 0:01:59]} 23. Rxe6 {[%clk 0:00:30]}  Bxe6 {[%clk 0:01:59]} 24. Be5 {[%clk 0:00:26]}  Rd8 {[%clk 0:01:55]} 25. Bd6 {[%clk 0:00:18]}  Na4 {[%clk 0:01:52]} 26. Ke2 {[%clk 0:00:14]}  Bd5 {[%clk 0:01:40]} 27. f3 {[%clk 0:00:13]}  Nb2 {[%clk 0:01:40]} 28. Bc2 {[%clk 0:00:12]}  Nc4 {[%clk 0:01:40]} 0-1


[Site "https://www.chess.com"]

[Event "Titled Tuesday Blitz December 13 Early 2022"]
[White "Torres Dominguez, David"]
[Black "Mazurkiewicz, Michal"]
[WhiteFideId "2220857"]
[BlackFideId "1124943"]
[WhiteElo "2037"]
[BlackElo "2081"]
[Result "0-1"]
[Round "02"]
[TimeControl "180+1"]
[Date "2022.12.14"]
[WhiteClock "0:00:10"]
[BlackClock "0:01:28"]

1. e4 {[%clk 0:02:58]}  d6 {[%clk 0:03:00]} 2. Nc3 {[%clk 0:02:58]}  Nf6 {[%clk 0:03:00]} 3. f4 {[%clk 0:02:58]}  c5 {[%clk 0:03:00]} 4. Nf3 {[%clk 0:02:58]}  g6 {[%clk 0:03:00]} 5. Bb5+ {[%clk 0:02:58]}  Nfd7 {[%clk 0:02:58]} 6. O-O {[%clk 0:02:57]}  Bg7 {[%clk 0:02:58]} 7. a4 {[%clk 0:02:55]}  O-O {[%clk 0:02:57]} 8. Qe1 {[%clk 0:02:55]}  a6 {[%clk 0:02:57]} 9. Bc4 {[%clk 0:02:55]}  Nc6 {[%clk 0:02:56]} 10. d3 {[%clk 0:02:52]}  Nd4 {[%clk 0:02:56]} 11. Nxd4 {[%clk 0:02:51]}  cxd4 {[%clk 0:02:56]} 12. Ne2 {[%clk 0:02:50]}  e6 {[%clk 0:02:55]} 13. f5 {[%clk 0:02:47]}  d5 {[%clk 0:02:54]} 14. Bb3 {[%clk 0:02:43]}  dxe4 {[%clk 0:02:52]} 15. dxe4 {[%clk 0:02:42]}  Nc5 {[%clk 0:02:49]} 16. fxg6 {[%clk 0:02:42]}  hxg6 {[%clk 0:02:49]} 17. Bc4 {[%clk 0:02:21]}  Nxe4 {[%clk 0:02:48]} 18. Nf4 {[%clk 0:02:17]}  Nd6 {[%clk 0:02:48]} 19. Bb3 {[%clk 0:02:16]}  e5 {[%clk 0:02:44]} 20. Nxg6 {[%clk 0:02:15]}  Re8 {[%clk 0:02:41]} 21. Qh4 {[%clk 0:01:51]}  Qxh4 {[%clk 0:02:39]} 22. Nxh4 {[%clk 0:01:52]}  Be6 {[%clk 0:02:35]} 23. Bxe6 {[%clk 0:01:49]}  Rxe6 {[%clk 0:02:36]} 24. Bd2 {[%clk 0:01:45]}  e4 {[%clk 0:02:35]} 25. Rae1 {[%clk 0:01:41]}  Nc4 {[%clk 0:02:28]} 26. Bc1 {[%clk 0:01:40]}  d3 {[%clk 0:02:22]} 27. cxd3 {[%clk 0:01:39]}  exd3 {[%clk 0:02:23]} 28. Rxe6 {[%clk 0:01:25]}  fxe6 {[%clk 0:02:24]} 29. b3 {[%clk 0:01:26]}  Bd4+ {[%clk 0:02:10]} 30. Kh1 {[%clk 0:01:25]}  Ne3 {[%clk 0:02:10]} 31. Bxe3 {[%clk 0:01:23]}  Bxe3 {[%clk 0:02:11]} 32. Rd1 {[%clk 0:01:21]}  Rc8 {[%clk 0:01:58]} 33. Nf3 {[%clk 0:00:39]}  Rc1 {[%clk 0:01:58]} 34. Rxc1 {[%clk 0:00:38]}  Bxc1 {[%clk 0:01:58]} 35. g4 {[%clk 0:00:36]}  d2 {[%clk 0:01:58]} 36. Nxd2 {[%clk 0:00:36]}  Bxd2 {[%clk 0:01:58]} 37. Kg2 {[%clk 0:00:37]}  Kg7 {[%clk 0:01:56]} 38. Kf3 {[%clk 0:00:37]}  Kf6 {[%clk 0:01:48]} 39. Ke4 {[%clk 0:00:37]}  Be1 {[%clk 0:01:48]} 40. h3 {[%clk 0:00:36]}  Bg3 {[%clk 0:01:47]} 41. Kd4 {[%clk 0:00:30]}  Kg5 {[%clk 0:01:43]} 42. Ke4 {[%clk 0:00:24]}  Kh4 {[%clk 0:01:43]} 43. b4 {[%clk 0:00:24]}  Be1 {[%clk 0:01:37]} 44. b5 {[%clk 0:00:24]}  Bc3 {[%clk 0:01:37]} 45. bxa6 {[%clk 0:00:23]}  bxa6 {[%clk 0:01:37]} 46. Kd3 {[%clk 0:00:22]}  Ba1 {[%clk 0:01:34]} 47. Kc4 {[%clk 0:00:20]}  e5 {[%clk 0:01:33]} 48. a5 {[%clk 0:00:15]}  Kxh3 {[%clk 0:01:29]} 49. g5 {[%clk 0:00:15]}  Kg4 {[%clk 0:01:30]} 50. g6 {[%clk 0:00:15]}  e4 {[%clk 0:01:30]} 51. Kb3 {[%clk 0:00:13]}  e3 {[%clk 0:01:29]} 52. Kc2 {[%clk 0:00:13]}  Kf3 {[%clk 0:01:28]} 53. Kb1 {[%clk 0:00:11]}  e2 {[%clk 0:01:28]} 54. Kxa1 {[%clk 0:00:09]}  e1=Q+ {[%clk 0:01:28]} 55. Kb2 {[%clk 0:00:10]}  Qxa5 {[%clk 0:01:28]} 0-1


[Site "https://www.chess.com"]

[Event "Titled Tuesday Blitz December 13 Early 2022"]
[White "Valle Maytin, Luis Enrique"]
[Black "Morefield, Jason"]
[WhiteFideId "3503666"]
[BlackFideId "30920825"]
[WhiteElo "2225"]
[BlackElo "2171"]
[Result "0-1"]
[Round "02"]
[TimeControl "180+1"]
[Date "2022.12.14"]
[WhiteClock "0:00:13"]
[BlackClock "0:00:18"]

1. e4 {[%clk 0:03:00]}  c5 {[%clk 0:02:57]} 2. Nf3 {[%clk 0:03:00]}  d6 {[%clk 0:02:56]} 3. d4 {[%clk 0:03:00]}  cxd4 {[%clk 0:02:57]} 4. Nxd4 {[%clk 0:03:00]}  Nf6 {[%clk 0:02:57]} 5. Nc3 {[%clk 0:03:01]}  Nc6 {[%clk 0:02:57]} 6. Bg5 {[%clk 0:02:50]}  e6 {[%clk 0:02:57]} 7. f4 {[%clk 0:02:48]}  a6 {[%clk 0:02:55]} 8. Qd2 {[%clk 0:02:44]}  Bd7 {[%clk 0:02:49]} 9. O-O-O {[%clk 0:02:42]}  Be7 {[%clk 0:02:45]} 10. Be2 {[%clk 0:02:31]}  Qb6 {[%clk 0:02:33]} 11. Nb3 {[%clk 0:02:15]}  Qc7 {[%clk 0:02:23]} 12. Bxf6 {[%clk 0:02:03]}  gxf6 {[%clk 0:02:21]} 13. f5 {[%clk 0:02:01]}  O-O-O {[%clk 0:02:15]} 14. g4 {[%clk 0:01:55]}  Ne5 {[%clk 0:02:14]} 15. Kb1 {[%clk 0:01:54]}  Kb8 {[%clk 0:02:14]} 16. Nd4 {[%clk 0:01:50]}  Bc8 {[%clk 0:02:05]} 17. h3 {[%clk 0:01:46]}  Bf8 {[%clk 0:02:00]} 18. Qf4 {[%clk 0:01:43]}  Bg7 {[%clk 0:01:42]} 19. Rhe1 {[%clk 0:01:33]}  Ka8 {[%clk 0:01:41]} 20. Bf1 {[%clk 0:01:33]}  h5 {[%clk 0:01:38]} 21. Re3 {[%clk 0:01:25]}  Bh6 {[%clk 0:01:37]} 22. Qg3 {[%clk 0:01:23]}  Bxe3 {[%clk 0:01:37]} 23. Qxe3 {[%clk 0:01:24]}  hxg4 {[%clk 0:01:37]} 24. hxg4 {[%clk 0:01:20]}  Nxg4 {[%clk 0:01:37]} 25. Qf4 {[%clk 0:01:19]}  Ne5 {[%clk 0:01:36]} 26. Nf3 {[%clk 0:01:09]}  Qe7 {[%clk 0:01:17]} 27. Nd4 {[%clk 0:01:04]}  Rdg8 {[%clk 0:01:14]} 28. Be2 {[%clk 0:01:01]}  Rh3 {[%clk 0:01:09]} 29. Na4 {[%clk 0:00:58]}  Nd7 {[%clk 0:01:01]} 30. Qf1 {[%clk 0:00:42]}  Rhg3 {[%clk 0:00:54]} 31. Qe1 {[%clk 0:00:28]}  Rg1 {[%clk 0:00:50]} 32. Qb4 {[%clk 0:00:27]}  Rxd1+ {[%clk 0:00:49]} 33. Bxd1 {[%clk 0:00:28]}  Rg1 {[%clk 0:00:48]} 34. Nc3 {[%clk 0:00:28]}  Nc5 {[%clk 0:00:45]} 35. a4 {[%clk 0:00:26]}  Nxe4 {[%clk 0:00:36]} 36. Nxe4 {[%clk 0:00:21]}  Rxd1+ {[%clk 0:00:35]} 37. Ka2 {[%clk 0:00:22]}  e5 {[%clk 0:00:34]} 38. Nb3 {[%clk 0:00:16]}  Bxf5 {[%clk 0:00:32]} 39. Nc3 {[%clk 0:00:16]}  Bxc2 {[%clk 0:00:28]} 40. Nxd1 {[%clk 0:00:16]}  Bxd1 {[%clk 0:00:29]} 41. Na5 {[%clk 0:00:15]}  Bf3 {[%clk 0:00:20]} 42. Qc3 {[%clk 0:00:14]}  Bg4 {[%clk 0:00:17]} 43. Qc8+ {[%clk 0:00:14]}  Bxc8 {[%clk 0:00:17]} 44. Nc4 {[%clk 0:00:13]}  Be6 {[%clk 0:00:17]} 45. b3 {[%clk 0:00:12]}  Bxc4 {[%clk 0:00:18]} 46. bxc4 {[%clk 0:00:13]}  e4 {[%clk 0:00:18]} 0-1


[Site "https://www.chess.com"]

[Event "Titled Tuesday Blitz December 13 Early 2022"]
[White "Wagner, Dennis"]
[Black "Silvestre, Christian"]
[WhiteFideId "24650684"]
[BlackFideId "30956269"]
[WhiteElo "2470"]
[BlackElo "2347"]
[Result "1-0"]
[Round "02"]
[TimeControl "180+1"]
[Date "2022.12.14"]
[WhiteClock "0:00:31"]
[BlackClock "0:00:15"]

1. d4 {[%clk 0:03:00]}  Nf6 {[%clk 0:02:58]} 2. c4 {[%clk 0:02:59]}  g6 {[%clk 0:02:58]} 3. Nc3 {[%clk 0:02:55]}  Bg7 {[%clk 0:02:58]} 4. e4 {[%clk 0:02:55]}  O-O {[%clk 0:02:57]} 5. Be2 {[%clk 0:02:54]}  d6 {[%clk 0:02:58]} 6. h4 {[%clk 0:02:54]}  e5 {[%clk 0:02:57]} 7. d5 {[%clk 0:02:52]}  c6 {[%clk 0:02:56]} 8. h5 {[%clk 0:02:50]}  cxd5 {[%clk 0:02:56]} 9. cxd5 {[%clk 0:02:50]}  Na6 {[%clk 0:02:56]} 10. h6 {[%clk 0:02:47]}  Bh8 {[%clk 0:02:55]} 11. Be3 {[%clk 0:02:45]}  Bd7 {[%clk 0:02:52]} 12. Nh3 {[%clk 0:02:39]}  Ne8 {[%clk 0:02:49]} 13. g4 {[%clk 0:02:35]}  Qa5 {[%clk 0:02:35]} 14. Kf1 {[%clk 0:02:31]}  Rc8 {[%clk 0:02:23]} 15. a3 {[%clk 0:02:29]}  Rxc3 {[%clk 0:02:19]} 16. bxc3 {[%clk 0:02:28]}  Nc5 {[%clk 0:02:17]} 17. Qc2 {[%clk 0:01:48]}  Nf6 {[%clk 0:02:07]} 18. f3 {[%clk 0:01:46]}  Rc8 {[%clk 0:02:05]} 19. Nf2 {[%clk 0:01:44]}  Ba4 {[%clk 0:02:02]} 20. Qb2 {[%clk 0:01:40]}  Nb3 {[%clk 0:02:00]} 21. Rb1 {[%clk 0:01:28]}  Rxc3 {[%clk 0:01:43]} 22. Bd2 {[%clk 0:01:03]}  Nxd2+ {[%clk 0:01:20]} 23. Qxd2 {[%clk 0:01:04]}  b6 {[%clk 0:01:16]} 24. Kg2 {[%clk 0:00:55]}  Nd7 {[%clk 0:00:44]} 25. Rhc1 {[%clk 0:00:44]}  Rxc1 {[%clk 0:00:40]} 26. Qxa5 {[%clk 0:00:43]}  bxa5 {[%clk 0:00:33]} 27. Rxc1 {[%clk 0:00:43]}  Bf6 {[%clk 0:00:25]} 28. Rc8+ {[%clk 0:00:41]}  Nf8 {[%clk 0:00:25]} 29. Nh3 {[%clk 0:00:33]}  g5 {[%clk 0:00:24]} 30. Rb8 {[%clk 0:00:32]}  Be7 {[%clk 0:00:19]} 31. Bb5 {[%clk 0:00:31]}  Bxb5 {[%clk 0:00:18]} 32. Rxb5 {[%clk 0:00:31]}  f6 {[%clk 0:00:17]} 33. Rxa5 {[%clk 0:00:31]}  Kf7 {[%clk 0:00:15]} 34. Rxa7 {[%clk 0:00:32]}  Nd7 {[%clk 0:00:15]} 35. Rxd7 {[%clk 0:00:31]} 1-0


[Site "https://www.chess.com"]

[Event "Titled Tuesday Blitz December 13 Early 2022"]
[White "Walentukiewicz, Michal"]
[Black "Pakleza, Zbigniew"]
[WhiteFideId "1126903"]
[BlackFideId "1119290"]
[WhiteElo "2028"]
[BlackElo "2410"]
[Result "0-1"]
[Round "02"]
[TimeControl "180+1"]
[Date "2022.12.14"]
[WhiteClock "0:00:19"]
[BlackClock "0:00:11"]

1. g3 {[%clk 0:03:00]}  d5 {[%clk 0:03:00]} 2. Bg2 {[%clk 0:03:00]}  Nf6 {[%clk 0:03:01]} 3. c4 {[%clk 0:03:00]}  c6 {[%clk 0:03:01]} 4. cxd5 {[%clk 0:03:00]}  cxd5 {[%clk 0:03:02]} 5. Nf3 {[%clk 0:03:01]}  Nc6 {[%clk 0:03:02]} 6. O-O {[%clk 0:03:02]}  Bf5 {[%clk 0:03:03]} 7. d3 {[%clk 0:03:03]}  e6 {[%clk 0:03:03]} 8. Nc3 {[%clk 0:03:03]}  Be7 {[%clk 0:03:04]} 9. Qa4 {[%clk 0:03:03]}  O-O {[%clk 0:03:03]} 10. e4 {[%clk 0:03:03]}  Bg6 {[%clk 0:03:03]} 11. Nh4 {[%clk 0:03:03]}  d4 {[%clk 0:02:57]} 12. Nxg6 {[%clk 0:03:03]}  hxg6 {[%clk 0:02:57]} 13. Ne2 {[%clk 0:03:03]}  e5 {[%clk 0:02:52]} 14. Bh3 {[%clk 0:03:00]}  Qb6 {[%clk 0:02:44]} 15. a3 {[%clk 0:02:53]}  Rfd8 {[%clk 0:02:36]} 16. b4 {[%clk 0:02:52]}  a5 {[%clk 0:02:34]} 17. b5 {[%clk 0:02:51]}  Na7 {[%clk 0:02:33]} 18. Rb1 {[%clk 0:02:51]}  Nd7 {[%clk 0:02:33]} 19. Bxd7 {[%clk 0:02:45]}  Rxd7 {[%clk 0:02:33]} 20. Bd2 {[%clk 0:02:21]}  Nc8 {[%clk 0:02:22]} 21. Rfc1 {[%clk 0:02:13]}  Nd6 {[%clk 0:02:16]} 22. Kg2 {[%clk 0:01:52]}  g5 {[%clk 0:02:13]} 23. f4 {[%clk 0:01:51]}  gxf4 {[%clk 0:02:12]} 24. gxf4 {[%clk 0:01:51]}  exf4 {[%clk 0:01:35]} 25. Nxf4 {[%clk 0:01:49]}  Ne8 {[%clk 0:01:34]} 26. Nd5 {[%clk 0:01:46]}  Rxd5 {[%clk 0:01:22]} 27. exd5 {[%clk 0:01:46]}  Qg6+ {[%clk 0:01:22]} 28. Kh1 {[%clk 0:01:44]}  Qxd3 {[%clk 0:01:17]} 29. Qc2 {[%clk 0:01:44]}  Qf3+ {[%clk 0:01:14]} 30. Kg1 {[%clk 0:01:43]}  Nd6 {[%clk 0:01:00]} 31. Rb3 {[%clk 0:01:39]}  Qxd5 {[%clk 0:00:59]} 32. a4 {[%clk 0:01:32]}  Ne4 {[%clk 0:00:48]} 33. Rd3 {[%clk 0:01:20]}  Nxd2 {[%clk 0:00:37]} 34. Rxd2 {[%clk 0:01:02]}  Bg5 {[%clk 0:00:34]} 35. Re1 {[%clk 0:00:52]}  Bxd2 {[%clk 0:00:34]} 36. Qxd2 {[%clk 0:00:52]}  d3 {[%clk 0:00:31]} 37. Re3 {[%clk 0:00:52]}  Rd8 {[%clk 0:00:30]} 38. Rg3 {[%clk 0:00:49]}  Qd4+ {[%clk 0:00:25]} 39. Kg2 {[%clk 0:00:48]}  b6 {[%clk 0:00:24]} 40. h3 {[%clk 0:00:27]}  g6 {[%clk 0:00:24]} 41. Rg4 {[%clk 0:00:27]}  Qd5+ {[%clk 0:00:22]} 42. Kg1 {[%clk 0:00:25]}  Rc8 {[%clk 0:00:18]} 43. Qh6 {[%clk 0:00:19]}  d2 {[%clk 0:00:11]} 0-1


[Site "https://www.chess.com"]

[Event "Titled Tuesday Blitz December 13 Early 2022"]
[White "Winterberg, Lukas"]
[Black "Hoffmann, Asa"]
[WhiteFideId "24622702"]
[BlackFideId "2001470"]
[WhiteElo "2350"]
[BlackElo "2117"]
[Result "1-0"]
[Round "02"]
[TimeControl "180+1"]
[Date "2022.12.14"]
[WhiteClock "0:01:00"]
[BlackClock "0:00:12"]

1. e4 {[%clk 0:02:57]}  d6 {[%clk 0:02:59]} 2. f4 {[%clk 0:02:56]}  c6 {[%clk 0:02:58]} 3. Nf3 {[%clk 0:02:56]}  Bg4 {[%clk 0:02:57]} 4. h3 {[%clk 0:02:52]}  Bxf3 {[%clk 0:02:57]} 5. Qxf3 {[%clk 0:02:53]}  g6 {[%clk 0:02:54]} 6. Nc3 {[%clk 0:02:51]}  Bg7 {[%clk 0:02:54]} 7. a4 {[%clk 0:02:49]}  Na6 {[%clk 0:02:52]} 8. Bc4 {[%clk 0:02:46]}  e6 {[%clk 0:02:47]} 9. O-O {[%clk 0:02:44]}  d5 {[%clk 0:02:45]} 10. exd5 {[%clk 0:02:42]}  cxd5 {[%clk 0:02:43]} 11. Bb5+ {[%clk 0:02:41]}  Kf8 {[%clk 0:02:43]} 12. b3 {[%clk 0:02:30]}  Ne7 {[%clk 0:02:41]} 13. Ba3 {[%clk 0:02:17]}  Rc8 {[%clk 0:02:38]} 14. g4 {[%clk 0:02:13]}  Nc5 {[%clk 0:02:35]} 15. f5 {[%clk 0:02:12]}  gxf5 {[%clk 0:02:34]} 16. Rae1 {[%clk 0:02:07]}  a6 {[%clk 0:02:19]} 17. Bd3 {[%clk 0:01:53]}  Nxd3 {[%clk 0:01:51]} 18. Qxd3 {[%clk 0:01:54]}  Qc7 {[%clk 0:01:43]} 19. gxf5 {[%clk 0:01:48]}  Bxc3 {[%clk 0:01:16]} 20. fxe6 {[%clk 0:01:45]}  Rg8+ {[%clk 0:01:01]} 21. Kh1 {[%clk 0:01:44]}  Rg3 {[%clk 0:00:49]} 22. Rxf7+ {[%clk 0:01:43]}  Ke8 {[%clk 0:00:48]} 23. Qxh7 {[%clk 0:01:04]}  Rg1+ {[%clk 0:00:12]} 24. Rxg1 {[%clk 0:01:00]} 1-0


[Site "https://www.chess.com"]